bitfinex/quotes_BTCUSD_20250529
["timestamp","ask_amount","ask_price","bid_price","bid_amount"]
[1748530419880,0.02802687,107600.0,107590.0,0.25901395]
[1748530420092,0.00944029,107600.0,107590.0,0.58013395]
[1748530420337,0.02802669,107600.0,107590.0,0.58013395]
[1748530420589,0.26780782,107600.0,107590.0,0.20901395]
[1748530420788,0.26780782,107600.0,107590.0,0.53001395]
[1748530421255,0.26780782,107600.0,107590.0,0.25901395]
[1748530422147,0.25851449,107600.0,107590.0,0.20901395]
[1748530422396,0.25851449,107600.0,107590.0,0.10005395]
[1748530422604,0.26963473,107600.0,107590.0,0.25901395]
[1748530423055,0.26961548,107600.0,107590.0,0.25901395]
[1748530423489,0.26780773,107600.0,107590.0,0.25901395]
[1748530423703,0.27710141,107600.0,107590.0,0.25901395]
[1748530424356,0.26780817,107600.0,107590.0,0.25901395]
[1748530424845,0.26780773,107600.0,107590.0,0.25901395]
[1748530425035,0.27710132,107600.0,107590.0,0.25901395]
[1748530425522,0.26780808,107600.0,107590.0,0.25901395]
[1748530425975,0.27890907,107600.0,107590.0,0.25901395]
[1748530426184,0.26780808,107600.0,107590.0,0.25901395]
[1748530426836,0.26780773,107600.0,107590.0,0.25901395]
[1748530428434,0.08193413,107600.0,107590.0,0.25901395]
[1748530428648,0.26780773,107600.0,107590.0,0.25901395]
[1748530428867,0.09122703,107600.0,107590.0,0.25901395]
[1748530429118,0.10052053,107600.0,107590.0,0.25901395]
[1748530429343,0.01873361,107600.0,107590.0,0.25901395]
[1748530429564,0.01873353,107600.0,107590.0,0.25901395]
[1748530429785,0.00014739,107600.0,107590.0,0.25901395]
[1748530434198,0.00014739,107600.0,107590.0,0.20901395]
[1748530434679,0.00014739,107600.0,107590.0,0.25901395]
[1748530434885,0.00014739,107600.0,107590.0,0.59117395]
[1748530435552,0.00014739,107600.0,107590.0,0.64117395]
[1748530435827,0.00014739,107600.0,107590.0,0.63217395]
[1748530436036,0.00014739,107600.0,107590.0,0.66017395]
[1748530436284,0.27611735,107650.0,107620.0,0.05]
[1748530436285,0.03456809,107650.0,107620.0,0.05]
[1748530436485,0.03456809,107650.0,107640.0,0.05]
[1748530436486,0.07298867,107650.0,107640.0,0.05]
[1748530436727,0.08242479,107650.0,107640.0,0.14105395]
[1748530436961,0.06384728,107650.0,107640.0,0.14105395]
[1748530437187,0.08242461,107650.0,107640.0,0.14105395]
[1748530437405,0.06384728,107650.0,107640.0,0.15973285]
[1748530437633,0.00014728,107650.0,107640.0,0.15973285]
[1748530437863,0.00014728,107650.0,107640.0,0.16205488]
[1748530438319,0.00014728,107650.0,107640.0,0.23654624]
[1748530438543,0.00014728,107650.0,107640.0,0.15973285]
[1748530438750,0.00014728,107650.0,107640.0,0.1620549]
[1748530439198,0.00943586,107650.0,107640.0,0.1620549]
[1748530439405,0.00943586,107650.0,107640.0,0.1690549]
[1748530439623,0.01872461,107650.0,107640.0,0.1690549]
[1748530439836,0.01872453,107650.0,107640.0,0.1710549]
[1748530440061,0.00943586,107650.0,107640.0,0.1710549]
[1748530440269,0.09271362,107650.0,107640.0,0.28465285]
[1748530440517,0.28779008,107650.0,107640.0,0.23465285]
[1748530440738,0.08342504,107650.0,107640.0,0.11873285]
[1748530440970,0.1020035,107650.0,107640.0,0.28465285]
[1748530441189,0.28779077,107650.0,107640.0,0.23465285]
[1748530441407,0.08342539,107650.0,107640.0,0.23465285]
[1748530441626,0.27850185,107650.0,107640.0,0.23465285]
[1748530441855,0.2692131,107650.0,107640.0,0.16873285]
[1748530442056,0.2692131,107650.0,107640.0,0.15005395]
[1748530442794,0.2692131,107650.0,107640.0,0.10005395]
[1748530443028,0.2692131,107650.0,107640.0,0.15005395]
[1748530443982,0.00014728,107650.0,107640.0,0.22454531]
[1748530444686,0.00943595,107650.0,107640.0,0.22454531]
[1748530444920,0.0489247,107650.0,107640.0,0.22254531]
[1748530445156,0.00014728,107650.0,107640.0,0.27254531]
[1748530445403,0.00014728,107650.0,107640.0,0.72594531]
[1748530445637,0.00014728,107650.0,107640.0,0.56054531]
[1748530446145,0.00014728,107650.0,107640.0,0.54954531]
[1748530446391,0.00014728,107650.0,107640.0,0.56674531]
[1748530446612,0.00943595,107650.0,107640.0,0.54974531]
[1748530446849,0.00014728,107650.0,107640.0,0.58074531]
[1748530447055,0.00943595,107650.0,107640.0,0.58074531]
[1748530447691,0.00943595,107650.0,107640.0,0.58086531]
[1748530447894,0.00943595,107650.0,107640.0,0.58074531]
[1748530448101,0.00014728,107650.0,107640.0,0.58074531]
[1748530449249,0.04233603,107650.0,107640.0,0.50585395]
[1748530449482,0.00014728,107650.0,107640.0,0.50585395]
[1748530450169,0.00014728,107650.0,107640.0,0.62229395]
[1748530450590,0.00014728,107650.0,107640.0,0.60429395]
[1748530451017,0.00014728,107650.0,107640.0,0.62329395]
[1748530451259,0.00014728,107650.0,107640.0,0.61029395]
[1748530451477,0.00014728,107650.0,107640.0,0.67029395]
[1748530451690,0.00014728,107650.0,107640.0,0.75878531]
[1748530452589,0.00014728,107650.0,107640.0,0.74478531]
[1748530452814,0.00014728,107650.0,107640.0,0.72578531]
[1748530453035,0.00014728,107650.0,107640.0,0.74678531]
[1748530453268,0.00014728,107650.0,107640.0,0.76278531]
[1748530453473,0.00014728,107650.0,107640.0,0.57729395]
[1748530453687,0.00014728,107650.0,107640.0,0.67729395]
[1748530454368,0.00014728,107650.0,107640.0,0.46141395]
[1748530454614,0.00014728,107650.0,107640.0,0.17805395]
[1748530454822,0.00014728,107650.0,107640.0,0.6294158]
[1748530455045,0.00014728,107650.0,107640.0,0.62709395]
[1748530456478,0.09980316,107650.0,107640.0,0.17805395]
[1748530456696,0.41193586,107650.0,107640.0,0.17805395]
[1748530456937,0.42122461,107650.0,107640.0,0.17805395]
[1748530457162,0.43051354,107650.0,107640.0,0.17805395]
[1748530457669,0.44909182,107650.0,107640.0,0.16205395]
[1748530457892,0.00014728,107650.0,107640.0,0.29286749]
[1748530458119,0.00014728,107650.0,107640.0,0.63054531]
[1748530458367,0.00014728,107650.0,107640.0,0.61554531]
[1748530458591,6e-05,107670.0,107660.0,0.05]
[1748530458853,6e-05,107670.0,107660.0,0.59077395]
[1748530459325,6e-05,107670.0,107660.0,0.60077395]
[1748530460541,6e-05,107670.0,107660.0,0.62077395]
[1748530461003,6e-05,107670.0,107660.0,0.69348639]
[1748530461933,6e-05,107670.0,107660.0,1.7473827]
[1748530462162,6e-05,107670.0,107660.0,1.69877534]
[1748530462453,6e-05,107670.0,107660.0,1.10797775]
[1748530462636,6e-05,107670.0,107660.0,1.09297775]
[1748530462885,6e-05,107670.0,107660.0,1.28661282]
[1748530463115,6e-05,107670.0,107660.0,1.34546355]
[1748530463365,6e-05,107670.0,107660.0,1.33617549]
[1748530463607,0.064,107710.0,107700.0,0.05]
[1748530463823,0.00049103,107710.0,107700.0,0.98761095]
[1748530464729,0.00049103,107710.0,107700.0,0.53669095]
[1748530464950,0.00049103,107710.0,107700.0,1.01926205]
[1748530465185,0.03259103,107710.0,107700.0,1.01926205]
[1748530465409,0.06359103,107710.0,107700.0,1.01950205]
[1748530465847,0.06359103,107710.0,107700.0,0.63994505]
[1748530466296,0.06359103,107710.0,107700.0,0.70230205]
[1748530468391,0.07287452,107710.0,107700.0,0.65794505]
[1748530468615,0.07287452,107710.0,107700.0,0.70230205]
[1748530468839,0.0821581,107710.0,107700.0,0.65794505]
[1748530469071,0.00049103,107710.0,107700.0,0.65794505]
[1748530469318,0.03239103,107710.0,107700.0,0.70230205]
[1748530469770,0.06389103,107710.0,107700.0,0.70230205]
[1748530470918,0.06389103,107710.0,107700.0,1.03758205]
[1748530471359,0.07317452,107710.0,107700.0,1.03758205]
[1748530471809,0.08245819,107710.0,107700.0,0.70230205]
[1748530472287,0.07317444,107710.0,107700.0,0.70230205]
[1748530472513,0.08245802,107710.0,107700.0,0.70230205]
[1748530473179,0.09174177,107710.0,107700.0,0.70230205]
[1748530473870,0.43174177,107710.0,107700.0,0.70230205]
[1748530474088,0.09174177,107710.0,107700.0,0.68473095]
[1748530474302,0.06389103,107710.0,107700.0,0.68473095]
[1748530474748,0.06389103,107710.0,107700.0,0.56769095]
[1748530474977,0.06389103,107710.0,107700.0,1.01953095]
[1748530475217,0.06389103,107710.0,107700.0,0.56769095]
[1748530475426,0.09174228,107710.0,107700.0,0.56769095]
[1748530475638,0.06389103,107710.0,107700.0,0.56769095]
[1748530475851,0.07317444,107710.0,107700.0,0.56769095]
[1748530476060,0.08245802,107710.0,107700.0,0.56769095]
[1748530476308,0.02834177,107710.0,107700.0,0.90281095]
[1748530476515,0.00049103,107710.0,107700.0,0.9217504]
[1748530477841,0.03239103,107710.0,107700.0,0.9217504]
[1748530478310,0.06509103,107710.0,107700.0,0.9217504]
[1748530478781,0.06509103,107710.0,107700.0,1.0392304]
[1748530478997,0.07375994,107710.0,107700.0,0.9947934]
[1748530479220,0.08304352,107710.0,107700.0,0.6593134]
[1748530479441,0.09232719,107710.0,107700.0,0.6593134]
[1748530479643,0.10161137,107710.0,107700.0,0.68473095]
[1748530479863,0.10161133,107710.0,107700.0,0.68473095]
[1748530480085,0.11089521,107710.0,107700.0,0.68473095]
[1748530480301,0.11089845,107710.0,107700.0,0.64037395]
[1748530480522,0.11089857,107710.0,107700.0,0.64037395]
[1748530480773,0.28729919,107710.0,107700.0,0.64037395]
[1748530480994,0.27862676,107710.0,107700.0,0.64037395]
[1748530481221,0.62909046,107710.0,107700.0,0.64037395]
[1748530481698,0.62909046,107710.0,107700.0,0.52333395]
[1748530481930,0.62909046,107710.0,107700.0,0.12205395]
[1748530481931,0.63282457,107710.0,107700.0,0.12205395]
[1748530482166,0.45409948,107710.0,107700.0,0.16641095]
[1748530482410,0.45409948,107710.0,107700.0,0.15341095]
[1748530482411,0.44240357,107710.0,107700.0,0.15341095]
[1748530482620,0.64665514,107710.0,107700.0,0.14973192]
[1748530482830,0.45168726,107710.0,107700.0,0.14973192]
[1748530483049,0.45168726,107710.0,107700.0,0.16673192]
[1748530483283,0.63739237,107710.0,107700.0,0.12005395]
[1748530483486,0.63978553,107710.0,107700.0,0.16441095]
[1748530483701,0.64847921,107710.0,107700.0,0.16441095]
[1748530483928,0.64847921,107710.0,107700.0,0.12005395]
[1748530484175,0.64291808,107710.0,107700.0,0.12005395]
[1748530484625,0.64290459,107710.0,107700.0,0.12005395]
[1748530484853,0.6342244,107710.0,107700.0,0.12005395]
[1748530485285,0.6342244,107710.0,107700.0,0.10805395]
[1748530485500,0.61941562,107710.0,107700.0,0.10805395]
[1748530485719,0.63420617,107710.0,107700.0,0.13541095]
[1748530485937,0.63420617,107710.0,107700.0,0.09105395]
[1748530486406,0.61941562,107710.0,107700.0,0.13541095]
[1748530487571,0.95385562,107710.0,107700.0,0.13541095]
[1748530488635,0.61941562,107710.0,107700.0,0.13541095]
[1748530488848,0.95353562,107710.0,107700.0,0.13541095]
[1748530489288,0.95353562,107710.0,107700.0,0.09105395]
[1748530489724,0.95353562,107710.0,107700.0,0.13541095]
[1748530490417,0.95353562,107710.0,107700.0,0.09105395]
[1748530490882,0.95301562,107710.0,107700.0,0.09105395]
[1748530491099,0.95301562,107710.0,107700.0,0.13541095]
[1748530491524,0.95301562,107710.0,107700.0,0.09105395]
[1748530491749,6.00301562,107710.0,107700.0,0.13541095]
[1748530492639,6.00301562,107710.0,107640.0,0.13449136]
[1748530492640,0.20436469,107650.0,107640.0,0.07449136]
[1748530492853,0.57636201,107660.0,107650.0,0.044357]
[1748530493070,0.87064063,107680.0,107670.0,0.044357]
[1748530493071,0.23024875,107680.0,107670.0,0.044357]
[1748530493288,0.23024875,107680.0,107670.0,0.13541095]
[1748530493289,0.61096706,107680.0,107670.0,0.13541095]
[1748530493540,0.61844404,107680.0,107670.0,0.13541095]
[1748530493749,0.61844404,107680.0,107670.0,0.13773255]
[1748530494008,0.60915761,107680.0,107670.0,0.13541095]
[1748530494234,0.60924883,107680.0,107670.0,0.13541095]
[1748530494455,0.59996232,107680.0,107670.0,0.13541095]
[1748530495167,0.61105845,107680.0,107670.0,0.13541095]
[1748530495815,0.61105845,107680.0,107670.0,0.15341095]
[1748530496039,0.61104948,107680.0,107670.0,0.17041095]
[1748530496264,0.93436232,107680.0,107670.0,0.17041095]
[1748530496478,0.95338495,107680.0,107670.0,0.12605395]
[1748530496716,0.95338495,107680.0,107670.0,0.17041095]
[1748530496917,0.95338495,107680.0,107670.0,0.12605395]
[1748530497165,0.95338495,107680.0,107670.0,0.17041095]
[1748530497642,0.95338495,107680.0,107670.0,0.12605395]
[1748530498310,0.95337621,107680.0,107670.0,0.12605395]
[1748530498982,0.95337621,107680.0,107670.0,0.17041095]
[1748530499201,0.95337621,107680.0,107670.0,0.12605395]
[1748530499891,6.00709219,107680.0,107670.0,0.12605395]
[1748530500112,6.00709219,107680.0,107670.0,0.035]
[1748530500793,6.00709219,107680.0,107670.0,0.017]
[1748530501035,6.00809219,107680.0,107670.0,0.017]
[1748530501280,0.20436539,107650.0,107640.0,0.11568]
[1748530501504,0.54436539,107650.0,107640.0,0.20673395]
[1748530501754,0.60786539,107650.0,107640.0,0.09105395]
[1748530501941,5.64857646,107650.0,107640.0,0.09105395]
[1748530502203,5.64857646,107650.0,107640.0,0.13541095]
[1748530502204,5.65965133,107650.0,107640.0,0.13541095]
[1748530502597,0.57752236,107620.0,107610.0,0.11568]
[1748530502600,0.61042236,107620.0,107610.0,0.11568]
[1748530502842,0.61042236,107620.0,107610.0,0.20673395]
[1748530503066,0.61042236,107620.0,107610.0,0.09105395]
[1748530503334,0.61042236,107620.0,107610.0,0.13541095]
[1748530503510,0.94138236,107620.0,107610.0,0.13541095]
[1748530503811,0.94126236,107620.0,107610.0,0.11405395]
[1748530504023,0.94126236,107620.0,107610.0,0.09120123]
[1748530504460,0.94126236,107620.0,107610.0,0.10020123]
[1748530505465,0.94126236,107620.0,107610.0,0.15055823]
[1748530505698,0.94126236,107620.0,107610.0,0.01514728]
[1748530505699,0.9560572,107620.0,107610.0,0.01514728]
[1748530506192,0.96709847,107620.0,107610.0,0.00014728]
[1748530506456,0.60817936,107590.0,107580.0,0.40132]
[1748530506682,0.60817936,107590.0,107550.0,0.044397]
[1748530506683,0.34929635,107560.0,107550.0,0.044397]
[1748530506930,0.35859296,107560.0,107550.0,0.13594247]
[1748530507145,0.55383238,107560.0,107550.0,0.25166247]
[1748530507390,0.34,107560.0,107550.0,0.25166247]
[1748530507635,0.19520296,107580.0,107570.0,0.044357]
[1748530507861,0.0092948,107580.0,107570.0,0.13541095]
[1748530508138,0.54312893,107590.0,107580.0,0.044357]
[1748530508139,0.56171714,107590.0,107580.0,0.044357]
[1748530508351,0.56171714,107590.0,107580.0,0.13541095]
[1748530508581,0.55242269,107590.0,107580.0,0.13541095]
[1748530508795,0.35858769,107590.0,107580.0,0.13773447]
[1748530509043,0.34929385,107590.0,107580.0,0.13773447]
[1748530509269,0.34929385,107590.0,107580.0,0.13541095]
[1748530509493,0.35958787,107590.0,107580.0,0.14441095]
[1748530509699,0.35029376,107590.0,107580.0,0.14441095]
[1748530509913,0.35958769,107590.0,107580.0,0.14441095]
[1748530510176,0.35958769,107590.0,107580.0,0.15341095]
[1748530510458,0.35029376,107590.0,107580.0,0.15341095]
[1748530510748,0.36888172,107590.0,107580.0,0.15341095]
[1748530510992,0.37817582,107590.0,107580.0,0.15341095]
[1748530511217,0.56406723,107590.0,107580.0,0.15341095]
[1748530511458,0.36888198,107590.0,107580.0,0.26917095]
[1748530511703,0.341,107590.0,107580.0,0.15341095]
[1748530511957,0.35958787,107590.0,107580.0,0.26917095]
[1748530512179,0.55477286,107590.0,107580.0,0.26917095]
[1748530512408,0.56406723,107590.0,107580.0,0.26917095]
[1748530512641,0.35958787,107590.0,107580.0,0.15341095]
[1748530512866,0.56406723,107590.0,107580.0,0.26917095]
[1748530513364,0.62866792,107590.0,107580.0,0.26917095]
[1748530514050,0.59536765,107590.0,107580.0,0.26917095]
[1748530514509,0.40018232,107590.0,107580.0,0.15341095]
[1748530514739,0.40018232,107590.0,107580.0,0.26917095]
[1748530514971,0.341,107590.0,107580.0,0.26917095]
[1748530515204,0.35958778,107590.0,107580.0,0.26917095]
[1748530515429,0.3688825,107590.0,107580.0,0.26917095]
[1748530515905,0.55477338,107590.0,107580.0,0.26917095]
[1748530517525,0.61827381,107590.0,107580.0,0.26917095]
[1748530518064,0.61827381,107590.0,107580.0,0.15341095]
[1748530518065,0.59968533,107590.0,107580.0,0.15341095]
[1748530518321,0.59968533,107590.0,107580.0,0.10905395]
[1748530518585,0.92700533,107590.0,107580.0,0.15341095]
[1748530518825,0.93803024,107590.0,107580.0,0.15341095]
[1748530519264,0.93783024,107590.0,107580.0,0.15341095]
[1748530519699,0.61071024,107590.0,107580.0,0.15341095]
[1748530519912,0.6107243,107590.0,107580.0,0.15341095]
[1748530520560,0.6107243,107590.0,107580.0,0.10905395]
[1748530520760,0.6107243,107590.0,107580.0,0.15341095]
[1748530520980,0.61809382,107590.0,107580.0,0.15341095]
[1748530524253,0.61810733,107590.0,107580.0,0.15341095]
[1748530524935,0.63283091,107590.0,107580.0,0.15341095]
[1748530525364,0.62177843,107590.0,107580.0,0.15341095]
[1748530526070,0.62177843,107590.0,107580.0,0.10905395]
[1748530526274,0.62177843,107590.0,107580.0,0.15341095]
[1748530528239,0.60705485,107590.0,107580.0,0.15341095]
[1748530530287,0.60705485,107590.0,107580.0,0.10905395]
[1748530530961,0.60705485,107590.0,107580.0,0.15341095]
[1748530532252,0.60705485,107590.0,107580.0,0.10905395]
[1748530532470,5.68665742,107590.0,107580.0,0.018]
[1748530532679,0.60701737,107570.0,107560.0,0.11232]
[1748530532894,0.62183649,107570.0,107560.0,0.21202842]
[1748530533118,0.62183649,107570.0,107560.0,0.09105395]
[1748530533393,0.62183649,107570.0,107560.0,0.20337395]
[1748530534484,0.62183649,107570.0,107560.0,0.21204025]
[1748530534720,0.62283649,107570.0,107560.0,0.22037395]
[1748530534935,0.62283649,107570.0,107560.0,0.22903998]
[1748530535170,0.3651147,107570.0,107560.0,0.273397]
[1748530535368,0.3651147,107570.0,107560.0,0.28073095]
[1748530535369,0.56133684,107570.0,107560.0,0.28073095]
[1748530535585,0.62503684,107570.0,107560.0,0.16841095]
[1748530535804,0.62503684,107570.0,107560.0,0.2450803]
[1748530536008,0.62503684,107570.0,107560.0,0.23641395]
[1748530536239,0.62503684,107570.0,107560.0,0.24508063]
[1748530536462,0.62503684,107570.0,107560.0,0.28077095]
[1748530536695,0.62503684,107570.0,107560.0,0.23641395]
[1748530536906,0.62503684,107570.0,107560.0,0.28077095]
[1748530537354,0.62503684,107570.0,107560.0,0.23641395]
[1748530537558,0.62503684,107570.0,107560.0,0.28077095]
[1748530537991,0.59203684,107570.0,107560.0,0.28077095]
[1748530538206,0.56133684,107570.0,107560.0,0.28077095]
[1748530538691,0.57063259,107570.0,107560.0,0.28943714]
[1748530538914,0.57063259,107570.0,107560.0,0.28077095]
[1748530539340,0.56133684,107570.0,107560.0,0.28077095]
[1748530540508,0.56133684,107570.0,107560.0,0.28943733]
[1748530541393,0.56133684,107570.0,107560.0,0.28943748]
[1748530541610,0.61624083,107570.0,107560.0,0.2953118]
[1748530542047,0.60694456,107570.0,107560.0,0.2953118]
[1748530542284,0.60694456,107570.0,107560.0,0.2509548]
[1748530542493,0.60694456,107570.0,107560.0,0.14726062]
[1748530542708,0.59212544,107570.0,107560.0,0.2509548]
[1748530543161,0.59212544,107570.0,107560.0,0.25962099]
[1748530543369,0.59212544,107570.0,107560.0,0.2596209]
[1748530543624,0.59212544,107570.0,107560.0,0.30397782]
[1748530543839,0.59212544,107570.0,107560.0,0.2509548]
[1748530544077,0.59212544,107570.0,107560.0,0.25962088]
[1748530544318,0.59212544,107570.0,107560.0,0.2509548]
[1748530544534,0.59212544,107570.0,107560.0,0.1385948]
[1748530544745,0.59212544,107570.0,107560.0,0.1829518]
[1748530545667,0.59212544,107570.0,107560.0,0.19162132]
[1748530545885,0.59212544,107570.0,107560.0,0.1829518]
[1748530546101,0.59212544,107570.0,107560.0,0.19162236]
[1748530546314,0.59212544,107570.0,107560.0,0.1829518]
[1748530546537,0.59212544,107570.0,107560.0,0.19162562]
[1748530546751,0.59212544,107570.0,107560.0,0.1829518]
[1748530547646,0.59212544,107570.0,107560.0,0.1916304]
[1748530547886,0.59212544,107570.0,107560.0,0.1829518]
[1748530548332,0.59212544,107570.0,107560.0,0.2918318]
[1748530548542,0.59212544,107570.0,107560.0,0.2474748]
[1748530548811,0.59212544,107570.0,107560.0,0.25614909]
[1748530549043,0.59212544,107570.0,107560.0,0.2918318]
[1748530551307,0.59212544,107570.0,107560.0,0.30050335]
[1748530551511,0.59212544,107570.0,107560.0,0.2918318]
[1748530551512,0.56852153,107570.0,107560.0,0.2918318]
[1748530551771,0.53722153,107570.0,107560.0,0.2918318]
[1748530552472,0.53722153,107570.0,107560.0,0.30050132]
[1748530552705,0.53722153,107570.0,107560.0,0.2918318]
[1748530553773,0.53722153,107570.0,107560.0,0.30050131]
[1748530554007,0.53722153,107570.0,107560.0,0.30050134]
[1748530554216,0.55207865,107570.0,107560.0,0.2918318]
[1748530554649,0.55207865,107570.0,107560.0,0.30050209]
[1748530554887,0.01685712,107570.0,107560.0,0.62170221]
[1748530555105,0.0131421,107570.0,107560.0,0.6757318]
[1748530555328,0.002,107570.0,107560.0,0.6757318]
[1748530558582,0.002,107570.0,107560.0,0.68378881]
[1748530560233,0.002,107570.0,107560.0,0.69378881]
[1748530561178,0.001,107570.0,107560.0,0.67778881]
[1748530561421,0.00736952,107590.0,107580.0,0.72708925]
[1748530561658,0.00736952,107590.0,107580.0,0.9527718]
[1748530562593,0.00736952,107590.0,107580.0,1.00193581]
[1748530563082,0.00936952,107590.0,107580.0,1.01993581]
[1748530563539,0.00736952,107590.0,107580.0,1.00193581]
[1748530564594,0.42034829,107640.0,107630.0,0.044357]
[1748530564807,0.43892796,107640.0,107630.0,0.24425095]
[1748530565040,0.63402263,107640.0,107630.0,0.24425095]
[1748530565749,0.63402263,107640.0,107630.0,0.24625095]
[1748530565971,0.44836524,107640.0,107630.0,0.24625095]
[1748530566231,0.63416977,107640.0,107630.0,0.24625095]
[1748530566455,0.64345999,107640.0,107630.0,0.24625095]
[1748530566705,0.63417037,107640.0,107630.0,0.24625095]
[1748530566945,0.61559044,107640.0,107630.0,0.24625095]
[1748530567892,0.61559044,107640.0,107630.0,0.2607918]
[1748530569942,0.6063003,107640.0,107630.0,0.2164348]
[1748530570161,0.6063003,107640.0,107630.0,0.09305395]
[1748530570392,0.9273403,107640.0,107630.0,0.002]
[1748530570621,6.00278538,107640.0,107630.0,0.002]
[1748530571325,5.98838734,107640.0,107630.0,0.002]
[1748530572476,5.66734734,107640.0,107630.0,0.002]
[1748530572712,6.00324446,107640.0,107630.0,0.002]
[1748530572916,6.04431619,107640.0,107630.0,0.002]
[1748530573136,6.01887111,107640.0,107630.0,0.002]
[1748530573583,6.04677511,107640.0,107630.0,0.002]
[1748530573817,0.60582236,107620.0,107610.0,0.445917]
[1748530574031,0.60582236,107620.0,107610.0,0.13541095]
[1748530574699,0.92682236,107620.0,107610.0,0.13541095]
[1748530575141,0.93582236,107620.0,107610.0,0.13541095]
[1748530575366,0.94687259,107620.0,107610.0,0.044357]
[1748530575632,0.59914897,107610.0,107600.0,0.16773785]
[1748530575844,0.5537333,107610.0,107600.0,0.26111517]
[1748530576080,0.009,107620.0,107610.0,0.12039785]
[1748530576290,0.009,107620.0,107610.0,0.68746316]
[1748530577197,0.008,107620.0,107610.0,0.68746316]
[1748530577440,0.03597457,107640.0,107630.0,0.044357]
[1748530577669,0.03597457,107640.0,107630.0,0.56497095]
[1748530577670,0.00943667,107640.0,107630.0,0.56497095]
[1748530577891,0.34943658,107640.0,107630.0,0.56497095]
[1748530578113,0.3587262,107640.0,107630.0,0.56497095]
[1748530578337,0.34014714,107640.0,107630.0,0.56279879]
[1748530578558,0.35872628,107640.0,107630.0,0.56279879]
[1748530578817,0.34514714,107640.0,107630.0,0.56279879]
[1748530579050,0.00514714,107640.0,107630.0,0.59329879]
[1748530579296,0.00514714,107640.0,107630.0,0.61283964]
[1748530583316,0.00514714,107640.0,107630.0,0.62098021]
[1748530585141,0.00514714,107640.0,107630.0,0.65108021]
[1748530586027,0.00514714,107640.0,107630.0,0.62098021]
[1748530586724,0.00514714,107640.0,107630.0,0.94718021]
[1748530586923,0.00514714,107640.0,107630.0,0.95718021]
[1748530587165,0.00514714,107640.0,107630.0,1.00718021]
[1748530587587,0.00014714,107640.0,107630.0,1.00218021]
[1748530587800,0.00014714,107640.0,107630.0,1.01718021]
[1748530588474,0.00014714,107640.0,107630.0,1.03118021]
[1748530588697,0.09305583,107690.0,107680.0,0.05672569]
[1748530588917,0.23934423,107690.0,107680.0,0.97849964]
[1748530589139,0.23063689,107690.0,107680.0,0.97849964]
[1748530589369,0.57063689,107690.0,107680.0,0.97849964]
[1748530589570,0.57934448,107690.0,107680.0,0.97849964]
[1748530589817,0.57063689,107690.0,107680.0,0.97849964]
[1748530590035,0.57934447,107690.0,107680.0,0.97849964]
[1748530590291,0.57934446,107690.0,107680.0,0.97849964]
[1748530590517,0.57063689,107690.0,107680.0,0.97849964]
[1748530590736,0.58634459,107690.0,107680.0,0.97849964]
[1748530590960,0.57763689,107690.0,107680.0,0.97849964]
[1748530591999,0.59895133,107690.0,107680.0,0.97849964]
[1748530592455,0.60765911,107690.0,107680.0,0.97849964]
[1748530592687,0.59472418,107690.0,107680.0,0.97849964]
[1748530592922,0.36423451,107690.0,107680.0,0.97849964]
[1748530593155,0.36571795,107690.0,107680.0,0.97849964]
[1748530593442,0.00714725,107690.0,107680.0,0.97849964]
[1748530593675,0.00714725,107690.0,107680.0,1.33349964]
[1748530593952,0.00867287,107710.0,107700.0,0.11762569]
[1748530594164,0.00867287,107710.0,107700.0,0.52943964]
[1748530594415,0.00916351,107710.0,107700.0,0.52943964]
[1748530595421,0.003,107730.0,107700.0,0.52943964]
[1748530595710,0.0160149,107740.0,107730.0,0.05672569]
[1748530595938,0.0160149,107740.0,107730.0,0.87217949]
[1748530596246,0.01616203,107740.0,107730.0,0.944351]
[1748530596461,0.01616203,107740.0,107730.0,0.86985964]
[1748530596687,0.01616203,107740.0,107730.0,0.94402512]
[1748530596918,0.01616203,107740.0,107730.0,1.05238512]
[1748530597161,0.02,107760.0,107750.0,0.11982569]
[1748530597398,0.02,107760.0,107750.0,0.53387892]
[1748530597605,0.02,107760.0,107750.0,0.53155964]
[1748530598497,0.01257331,107760.0,107750.0,0.61032874]
[1748530598737,0.01257331,107760.0,107750.0,0.63678693]
[1748530599000,0.22162503,107820.0,107810.0,0.05672569]
[1748530599240,0.22162503,107820.0,107810.0,0.25625964]
[1748530599241,0.19482871,107820.0,107810.0,0.25625964]
[1748530599413,6e-05,107820.0,107810.0,0.25625964]
[1748530599651,0.00933394,107820.0,107810.0,0.25625964]
[1748530599840,6e-05,107820.0,107810.0,0.14777964]
[1748530600083,6e-05,107820.0,107810.0,0.57693964]
[1748530600364,6e-05,107820.0,107810.0,0.57743028]
[1748530600524,6e-05,107820.0,107810.0,0.27555652]
[1748530600740,6e-05,107820.0,107810.0,0.59619652]
[1748530600953,6e-05,107820.0,107810.0,0.59004764]
[1748530601279,0.56265164,107820.0,107810.0,0.26948764]
[1748530601434,0.56265164,107820.0,107810.0,0.12770055]
[1748530601435,0.5759035,107820.0,107810.0,0.12770055]
[1748530601687,0.5759035,107820.0,107810.0,0.23814055]
[1748530601688,0.60770299,107820.0,107810.0,0.23814055]
[1748530601909,0.60770299,107820.0,107810.0,0.12970055]
[1748530601910,0.61527753,107820.0,107810.0,0.12970055]
[1748530602185,0.60600333,107820.0,107810.0,0.23814055]
[1748530602405,6e-05,107820.0,107810.0,0.2526814]
[1748530602662,6e-05,107820.0,107810.0,0.5732414]
[1748530603339,6e-05,107820.0,107810.0,0.5762414]
[1748530603801,6e-05,107820.0,107810.0,0.5732414]
[1748530604021,6e-05,107820.0,107810.0,0.5712414]
[1748530604260,6e-05,107820.0,107810.0,0.5952414]
[1748530604482,6e-05,107820.0,107810.0,0.29346287]
[1748530604692,6e-05,107820.0,107810.0,0.57774691]
[1748530604906,0.20410316,107820.0,107810.0,0.17048202]
[1748530605137,0.20410316,107820.0,107810.0,0.15170055]
[1748530605138,0.24437779,107820.0,107810.0,0.15170055]
[1748530605366,0.24437779,107820.0,107810.0,0.11554459]
[1748530605584,0.26690351,107820.0,107810.0,0.26002055]
[1748530605810,0.25762897,107820.0,107810.0,0.22386459]
[1748530606032,0.25762897,107820.0,107810.0,0.11554459]
[1748530606250,0.25762897,107820.0,107810.0,0.15170055]
[1748530606695,0.25762897,107820.0,107810.0,0.13870055]
[1748530606922,0.25762897,107820.0,107810.0,0.14170055]
[1748530607152,0.25762897,107820.0,107810.0,0.13070055]
[1748530607369,0.25762897,107820.0,107810.0,0.23898055]
[1748530607613,0.27617779,107820.0,107810.0,0.2535214]
[1748530607834,0.28423001,107820.0,107810.0,0.2555214]
[1748530608068,0.28423001,107820.0,107810.0,0.1472414]
[1748530608291,0.28423001,107820.0,107810.0,0.2555214]
[1748530608292,0.29289347,107820.0,107810.0,0.2555214]
[1748530608512,0.28423001,107820.0,107810.0,0.2555214]
[1748530608744,0.28423001,107820.0,107810.0,0.21936544]
[1748530608951,0.28423001,107820.0,107810.0,0.2555214]
[1748530609178,0.28423001,107820.0,107810.0,0.21936544]
[1748530609451,0.04520918,107820.0,107810.0,0.2555214]